fUST/lending_fUST_20250328
["ID","MTS","AMOUNT","RATE_DAILY","PERIOD"]
[356771502,1743148260785,-948.21,0.00034791,10]
[356771503,1743148260795,-6491.13,0.00034792,10]
[356771504,1743148260805,-8917.98627867,0.00034794,7]
[356771505,1743148260815,-2793.66,0.00034794,10]
[356771506,1743148260824,-1542.3,0.00034794,10]
[356771507,1743148260834,-505.34826254,0.00034794,10]
[356771508,1743148260844,-8637.09,0.00034794,10]
[356771509,1743148260853,-500.0,0.00034794,10]
[356771510,1743148260863,-500.0,0.00034794,10]
[356771511,1743148260872,-721.56,0.00034794,10]
[356771512,1743148260882,-3378.53,0.00034794,10]
[356771513,1743148260892,-709.52,0.00034794,10]
[356771514,1743148260901,-500.0,0.00034794,10]
[356771515,1743148260911,-1261.24,0.00034794,10]
[356771516,1743148260921,-1355.09,0.00034794,10]
[356771517,1743148260930,-170.03534381,0.00034794,10]
[356771518,1743148260943,-1625.47698949,0.00034794,10]
[356771519,1743148260955,-1706.6,0.00034794,10]
[356771520,1743148261533,-164.80341037,0.00033969,10]
[356771522,1743149346102,-490.0,0.00031689,2]
[356771523,1743149349168,-92.6488002,0.00031689,2]
[356771524,1743149349196,-593.38398,0.00031905,2]
[356771585,1743149432474,-349.99717381,0.00032885,2]
[356771586,1743149432484,-167.60647244,0.00032898,2]
[356771587,1743149432493,-167.60647244,0.00032899,2]
[356771588,1743149432504,-206.67952364,0.000329,10]
[356771589,1743149432513,-188.0,0.00032971,2]
[356771590,1743149432522,-41545.10395767,0.00032972,2]
[356771591,1743149432541,-8454.89604233,0.00032972,2]
[356771592,1743149432551,-500.0,0.00032972,7]
[356771593,1743149432562,-500.0,0.00032972,7]
[356771594,1743149432571,-500.0,0.00032972,2]
[356771595,1743149432583,-500.0,0.00032972,7]
[356771596,1743149432593,-507.67535005,0.00032972,7]
[356771597,1743149432605,-500.0,0.00032972,2]
[356771598,1743149432615,-500.0,0.00032972,7]
[356771599,1743149432624,-500.0,0.00032972,2]
[356771600,1743149432638,-500.0,0.00032972,2]
[356771601,1743149432647,-500.0,0.00032972,7]
[356771602,1743149432656,-500.0,0.00032972,2]
[356771603,1743149432666,-500.0,0.00032972,2]
[356771604,1743149432675,-247.52640191,0.00032972,7]
[356771659,1743149440556,-217.24471212,0.00032972,7]
[356771660,1743149440567,-500.0,0.00032972,2]
[356771661,1743149440578,-500.0,0.00032972,2]
[356771662,1743149440589,-500.0,0.00032972,2]
[356771663,1743149440598,-500.0,0.00032972,2]
[356771664,1743149440608,-500.0,0.00032972,2]
[356771665,1743149440619,-500.0,0.00032972,2]
[356771666,1743149440628,-500.0,0.00032972,2]
[356771667,1743149440638,-207.83966289,0.00032972,2]
[356771668,1743149440651,-500.0,0.00032972,2]
[356771669,1743149440661,-500.0,0.00032972,2]
[356771670,1743149440671,-500.0,0.00032972,2]
[356771671,1743149440683,-500.0,0.00032972,2]
[356771672,1743149440694,-500.0,0.00032972,2]
[356771673,1743149440705,-500.0,0.00032972,2]
[356771674,1743149440715,-500.0,0.00032972,2]
[356771675,1743149440724,-436.41130439,0.00032972,2]
[356771676,1743149440742,-63.58869561,0.00032972,2]
[356771677,1743149440752,-204.51615116,0.00032972,2]
[356771678,1743149441323,-155.7254616,0.00032972,10]
[356771745,1743149443711,-295.48384884,0.00032972,2]
[356771746,1743149443723,-500.0,0.00032972,2]
[356771747,1743149443733,-570.6145384,0.00032972,10]
[356771748,1743149443743,-500.0,0.00032972,10]
[356771749,1743149443752,-908.36,0.00032972,10]
[356771750,1743149443762,-500.0,0.00032973,5]
[356771751,1743149443771,-500.0,0.00032973,5]
[356771753,1743149443780,-503.48283936,0.00032973,5]
[356771755,1743149443789,-621.8592574,0.00032973,5]
[356771757,1743149443798,-449.71234889,0.00032973,5]
[356771761,1743149443824,-50.28765111,0.00032973,5]
[356771763,1743149443833,-500.0,0.00032973,5]
[356771764,1743149443842,-500.0,0.00032973,5]
[356771766,1743149443851,-500.0,0.00032973,5]
[356771769,1743149443861,-500.0,0.00032973,5]
[356771772,1743149443870,-500.0,0.00032973,5]
[356771775,1743149443879,-500.0,0.00032973,5]
[356771777,1743149443888,-429.68234889,0.00032973,5]
[356771784,1743149444449,-70.31765111,0.00032973,5]
[356771785,1743149444472,-87.16993329,0.00032973,5]
[356771803,1743149446296,-412.83006671,0.00032973,5]
[356771804,1743149446305,-500.0,0.00032973,5]
[356771805,1743149446317,-22.79549089,0.00032973,5]
[356771806,1743149446329,-403.17833904,0.00032973,5]
[356771807,1743149446339,-500.0,0.00032973,5]
[356771808,1743149446348,-600.0,0.00032978,2]
[356771809,1743149446358,-160.0,0.00032984,2]
[356771810,1743149446368,-526.94,0.00032988,3]
[356771811,1743149446378,-1007.79,0.00032996,10]
[356771812,1743149446389,-19584.6779374,0.00032996,10]
[356771813,1743149447155,-1229.43807603,0.00032996,10]
[356771814,1743149458558,-300.0,0.00032972,10]
[356771815,1743149463766,-250.0,0.00032972,10]
[356771816,1743149473291,261.29724427,0.00025,120]
[356771817,1743149481493,-171.35,0.00032972,10]
[356771818,1743149481516,-328.65,0.00032972,10]
[356771819,1743149486617,-171.35,0.00032972,10]
[356771820,1743149486641,-500.0,0.00032972,10]
[356771821,1743149486666,-500.0,0.00032972,10]
[356771822,1743149486690,-500.0,0.00032972,10]
[356771823,1743149486714,-1537.23398657,0.00032996,10]
[356771824,1743149486738,-898.88190941,0.00032996,10]
[356771825,1743149487232,171.35,0.00032972,10]
[356771826,1743149496594,1063.77742745,0.00025,120]
[356771827,1743149496618,1514.0902,0.00025,120]
[356771828,1743149496641,1700.94826853,0.00025,120]
[356771830,1743150145236,-870.51,0.00032,30]
[356771831,1743150147862,-1646.21124174,0.00032,30]
[356771832,1743150152796,-250.0,0.00032,30]
[356771833,1743150161475,-218.49776043,0.00024953,3]
[356771834,1743150163875,-31.50223957,0.00024953,3]
[356771835,1743150163900,-218.49776043,0.00031545,2]
[356771836,1743150167761,-250.0,0.00024953,3]
[356771837,1743150177254,-209.54504533,0.00024953,3]
[356771840,1743150352101,-40.45495467,0.00024953,3]
[356771841,1743150352124,-1010.94031557,0.00031545,2]
[356771842,1743150352144,-174.4448732,0.00031667,2]
[356771843,1743150352164,-1465.69751656,0.00032,30]
[356771844,1743150356134,-512.17712619,0.00032,30]
[356771845,1743150356156,-157.59426,0.00032015,2]
[356771846,1743150356177,-157.676079,0.00032447,10]
[356771847,1743150356197,-306.24752704,0.00032795,2]
[356771848,1743150356217,-500.0,0.00032873,5]
[356771849,1743150356239,-500.0,0.00032873,5]
[356771850,1743150356261,-500.0,0.00032873,5]
[356771851,1743150356282,-38.0189257,0.00032873,5]
[356771853,1743150397165,-271.8,0.00032873,5]
[356771854,1743150411813,215.9,0.00025,120]
[356771856,1743150430136,-400.0,0.00032872,2]
[356771857,1743150430157,-514.68640412,0.00032873,5]
[356771858,1743150430177,-500.0,0.00032873,5]
[356771859,1743150430197,-500.0,0.00032873,5]
[356771860,1743150430217,-500.0,0.00032873,5]
[356771861,1743150430237,-383.8250937,0.00032873,5]
[356771862,1743150433096,-116.1749063,0.00032873,5]
[356771863,1743150433116,-500.0,0.00032873,5]
[356771864,1743150433137,-500.0,0.00032873,5]
[356771865,1743150433157,-370.58815398,0.00032873,5]
[356771866,1743150437080,-129.41184602,0.00032873,5]
[356771867,1743150437101,-500.0,0.00032873,5]
[356771868,1743150437123,-500.0,0.00032873,5]
[356771869,1743150437144,-500.0,0.00032873,5]
[356771870,1743150437166,-500.0,0.00032873,5]
[356771871,1743150437188,-500.0,0.00032875,2]
[356771872,1743150437210,-273.86345711,0.00032875,2]
[356771873,1743150437233,-10.44320166,0.00032875,2]
[356771874,1743150444367,-267.96658616,0.00032776,2]
[356771875,1743150444394,-489.55679834,0.00032875,2]
[356771876,1743150444418,-500.0,0.00032875,2]
[356771877,1743150444441,-170.78396629,0.00032875,2]
[356771878,1743150444462,-1313.74983129,0.00032876,2]
[356771879,1743150445095,-1308.7494,0.00032876,2]
[356771900,1743150632605,-400.0,0.00032872,2]
[356771901,1743150632616,-500.0,0.00032873,5]
[356771902,1743150632625,-500.0,0.00032873,5]
[356771903,1743150632635,-483.3639992,0.00032873,5]
[356771904,1743150632644,-500.0,0.00032873,5]
[356771905,1743150632653,-500.0,0.00032873,5]
[356771906,1743150632664,-500.0,0.00032873,5]
[356771907,1743150632674,-500.0,0.00032873,5]
[356771908,1743150632683,-500.0,0.00032873,5]
[356771909,1743150632692,-500.0,0.00032873,5]
[356771910,1743150632701,-500.0,0.00032873,5]
[356771911,1743150632710,-281.41404645,0.00032874,2]
[356771912,1743150632720,-965.8,0.00032875,10]
[356771913,1743150632730,-1093.90087002,0.00032875,10]
[356771914,1743150632820,-323.74650053,0.00032875,10]
[356771915,1743150632831,-7793.70463902,0.00032875,10]
[356771926,1743150638251,-12274.41799043,0.00032875,10]
[356771927,1743150638260,-6119.91,0.00032875,10]
[356771928,1743150638270,-1750.06,0.00032875,10]
[356771929,1743150638279,-1732.95,0.00032875,10]
[356771930,1743150638288,-500.0,0.00032875,10]
[356771933,1743150638489,-500.0,0.00032875,10]
[356771934,1743150638499,-12347.13,0.00032875,10]
[356771935,1743150638509,-2726.37,0.00032875,10]
[356771936,1743150638518,-1998.05,0.00032875,10]
[356771937,1743150638528,-827.34,0.00032875,10]
[356771938,1743150638537,-1008.31,0.00032875,10]
[356771939,1743150638546,-8960.54,0.00032875,10]
[356771940,1743150638556,-3095.71,0.00032875,10]
[356771941,1743150638566,-500.0,0.00032875,10]
[356771942,1743150638575,-696.08,0.00032875,10]
[356771943,1743150638584,-500.0,0.00032875,10]
[356771944,1743150638594,-500.0,0.00032875,10]
[356771945,1743150638603,-500.0,0.00032875,10]
[356771946,1743150638612,-500.0,0.00032875,10]
[356771947,1743150638622,-500.0,0.00032875,10]
[356771948,1743150638631,-500.0,0.00032875,10]
[356771949,1743150638641,-1300.96,0.00032875,10]
[356771950,1743150638650,-500.0,0.00032875,10]
[356771951,1743150638659,-500.0,0.00032875,10]
[356771952,1743150638669,-870.51,0.00032875,10]
[356771953,1743150638678,-2702.93,0.00032875,10]
[356771954,1743150638687,-500.0,0.00032875,10]
[356771955,1743150638697,-50000.0,0.00032875,2]
[356771956,1743150638706,-2833.89161328,0.00032885,2]
[356771957,1743150638715,-6722.19586978,0.00032885,3]
[356771958,1743150638724,-3778.52215104,0.00032886,2]
[356771959,1743150638734,-7557.04430208,0.00032887,2]
[356771960,1743150638743,-944.63053776,0.00032888,2]
[356771961,1743150638752,-23691.134163,0.00032895,3]
[356771962,1743150638761,-4220.11,0.00032895,10]
[356771963,1743150638770,-500.0,0.00032895,10]
[356771964,1743150638779,-5541.20337261,0.00032895,10]
[356771965,1743150638791,-1792.74662739,0.00032895,10]
[356771966,1743150638801,-1299.88354101,0.00032895,10]
[356771967,1743150638813,-2108.31348399,0.00032895,10]
[356771968,1743150638874,-304.67302023,0.00032895,10]
[356771974,1743150640545,-550.45166704,0.00032875,10]
[356771975,1743150640556,-4044.27,0.00032875,10]
[356771976,1743150640573,-1369.3451998,0.00032895,10]
[356771993,1743150643607,-234.47076289,0.00032775,2]
[356771994,1743150643617,-616.75923711,0.00032875,10]
[356771995,1743150643629,-74.54076289,0.00032875,10]
[356771996,1743150643638,-526.68475497,0.00032895,10]
[356771997,1743150643647,-500.0,0.00032895,10]
[356771998,1743150643657,-10731.10724601,0.00032895,10]
[356771999,1743150643695,-465.08275399,0.00032895,10]
[356772000,1743150643704,-274.68021268,0.00032895,10]
[356772015,1743150646301,-500.0,0.00032875,10]
[356772018,1743150646312,-351.8,0.00032875,10]
[356772023,1743150646356,-148.2,0.00032875,10]
[356772025,1743150646366,-924.52978732,0.00032895,10]
[356772027,1743150646376,-3760.02,0.00032895,10]
[356772029,1743150646385,-500.0,0.00032895,10]
[356772032,1743150646395,-790.17,0.00032895,10]
[356772034,1743150646405,-500.0,0.00032895,10]
[356772036,1743150646414,-4531.98,0.00032895,10]
[356772038,1743150646423,-1285.61,0.00032895,10]
[356772040,1743150646433,-969.8,0.00032895,10]
[356772042,1743150646443,-3748.74,0.00032895,10]
[356772044,1743150646453,-2698.6,0.00032895,10]
[356772046,1743150646462,-2086.38,0.00032895,10]
[356772048,1743150646471,-1125.09,0.00032895,10]
[356772050,1743150646481,-19386.68,0.00032895,10]
[356772052,1743150646491,-621.04,0.00032895,10]
[356772054,1743150646500,-1001.08,0.00032895,10]
[356772056,1743150646510,-715.43,0.00032895,10]
[356772058,1743150646519,-4867.8,0.00032895,10]
[356772060,1743150646529,-580.98,0.00032895,10]
[356772062,1743150646539,-4869.22,0.00032895,10]
[356772064,1743150646548,-4985.35,0.00032895,10]
[356772066,1743150646558,-1281.53,0.00032895,10]
[356772068,1743150646567,-2516.96,0.00032895,10]
[356772070,1743150646579,-570.67,0.00032895,10]
[356772072,1743150646589,-4806.82,0.00032895,10]
[356772074,1743150646599,-2053.74,0.00032895,10]
[356772077,1743150646609,-500.0,0.00032895,10]
[356772079,1743150646619,-711.75,0.00032895,10]
[356772081,1743150646629,-1075.94,0.00032895,10]
[356772083,1743150646638,-500.0,0.00032895,10]
[356772085,1743150646647,-775.4,0.00032895,10]
[356772087,1743150646657,-1949.9,0.00032895,10]
[356772089,1743150646667,-500.0,0.00032895,10]
[356772091,1743150646677,-500.0,0.00032895,10]
[356772093,1743150646687,-3218.0,0.00032895,10]
[356772095,1743150646696,-5473.74774795,0.00032895,10]
[356772130,1743150647868,-300.0,0.00032875,10]
[356772131,1743150713321,1448.03540756,0.00032,5]
[356772132,1743150713343,1500.3702,0.00032,5]
[356772133,1743150713363,3269.8778,0.00032,5]
[356772134,1743150713384,1391.9234,0.00032,5]
[356772135,1743150713405,3116.5372,0.00032,5]
[356772136,1743150713425,2857.02692279,0.00032,5]
[356772137,1743150713446,2853.86126566,0.00032,5]
[356772138,1743150713469,2898.08711914,0.00032,5]
[356772139,1743150713491,3037.7648,0.00032,5]
[356772141,1743150869368,159.0,0.00011,2]
[356772147,1743151535146,-321.57162598,0.00026149,2]
[356772148,1743151540100,-157.86185276,0.00026149,2]
[356772149,1743151540121,-2516.81999453,0.00030938,2]
[356772150,1743151633105,-156.44088,0.00030938,2]
[356772151,1743151638090,-61.95812767,0.00030938,2]
[356772152,1743151638112,-146.77715836,0.00031796,2]
[356772154,1743151746249,-1887.86700844,0.0002999,2]
[356772155,1743151746271,-196.98983252,0.00029999,2]
[356772156,1743151746291,-300.0,0.00029999,2]
[356772157,1743151746314,-3361.09793489,0.0003,3]
[356772158,1743151746335,-146650.89542415,0.0003,10]
[356772159,1743151746369,-256706.10457585,0.0003,10]
[356772160,1743151746396,-976.55,0.00030136,10]
[356772161,1743151746417,-20632.2,0.00030136,10]
[356772162,1743151746438,-976.55,0.0003041,10]
[356772163,1743151746459,-20632.2,0.0003041,10]
[356772164,1743151746480,-976.55,0.00030684,10]
[356772165,1743151746502,-20632.2,0.00030684,10]
[356772166,1743151746523,-976.55,0.00030958,10]
[356772167,1743151746545,-20632.2,0.00030958,10]
[356772168,1743151746566,-976.55,0.00031232,10]
[356772169,1743151746586,-20632.2,0.00031232,10]
[356772170,1743151746609,-976.55,0.00031506,10]
[356772171,1743151746630,-20632.2,0.00031506,10]
[356772172,1743151746654,-167.60647244,0.00031696,2]
[356772173,1743151746674,-504.59774588,0.0003172,2]
[356772174,1743151746695,-208.85503588,0.0003172,5]
[356772175,1743151746715,-976.55,0.0003178,10]
[356772176,1743151746736,-20632.2,0.0003178,10]
[356772177,1743151746758,-4.57316008,0.00031796,2]
[356772178,1743151746782,-259.62511286,0.000319,10]
[356772179,1743151746803,-1000.0,0.00031978,2]
[356772180,1743151746825,-600.0,0.00031978,2]
[356772181,1743151746849,-269.69528692,0.00031979,2]
[356772182,1743151746872,-809.08586076,0.00031985,2]
[356772183,1743151746893,-50000.0,0.00031985,2]
[356772184,1743151746916,-269.69528692,0.00031986,2]
[356772185,1743151746938,-2157.56229536,0.00031986,2]
[356772186,1743151746959,-1677.14,0.00031988,10]
[356772187,1743151746981,-500.0,0.00031988,10]
[356772188,1743151747002,-11832.67,0.00031988,10]
[356772189,1743151747023,-159.3,0.00031989,2]
[356772190,1743151747044,-5864.92,0.00031995,10]
[356772191,1743151747065,-1660.74,0.00031995,10]
[356772192,1743151747087,-500.0,0.00031995,10]
[356772193,1743151747108,-500.0,0.00031995,10]
[356772194,1743151747129,-500.0,0.00031995,10]
[356772195,1743151747150,-1325.01,0.00031995,10]
[356772196,1743151747171,-500.0,0.00031995,10]
[356772197,1743151747191,-2612.77,0.00031995,10]
[356772198,1743151747212,-500.0,0.00031995,10]
[356772199,1743151747232,-500.0,0.00031995,10]
[356772200,1743151747252,-500.0,0.00031995,10]
[356772201,1743151747273,-500.0,0.00031995,10]
[356772202,1743151747294,-877.61,0.00031995,10]
[356772203,1743151747314,-792.87,0.00031995,10]
[356772204,1743151747334,-239.99528142,0.00031995,10]
[356772205,1743151747355,-966.3,0.00031995,10]
[356772206,1743151747382,-8587.18,0.00031995,10]
[356772207,1743151747402,-500.0,0.00031995,10]
[356772208,1743151747423,-6062.45,0.00031995,10]
[356772209,1743151747443,-500.0,0.00031995,10]
[356772210,1743151747465,-500.0,0.00031995,10]
[356772211,1743151747485,-500.0,0.00031995,10]
[356772212,1743151747506,-550.51,0.00031995,10]
[356772213,1743151747525,-500.0,0.00031995,10]
[356772214,1743151747547,-500.0,0.00031995,10]
[356772215,1743151747568,-2590.31,0.00031995,10]
[356772216,1743151747589,-500.0,0.00031995,10]
[356772217,1743151747608,-602.7,0.00031995,10]
[356772218,1743151747629,-711.37,0.00031995,10]
[356772219,1743151747650,-324.49816164,0.00031995,10]
[356772220,1743151747669,-790.3,0.00031995,10]
[356772221,1743151747691,-5362.69,0.00031995,10]
[356772222,1743151747712,-500.0,0.00031995,10]
[356772223,1743151747734,-3875.76,0.00031995,10]
[356772224,1743151747755,-541.9,0.00031995,10]
[356772225,1743151747775,-607.67163907,0.00031995,10]
[356772226,1743151747796,-10729.68,0.00031995,10]
[356772227,1743151747817,-500.0,0.00031995,10]
[356772228,1743151747837,-542.97,0.00031995,10]
[356772229,1743151747858,-500.0,0.00031995,10]
[356772230,1743151747877,-3603.36,0.00031995,10]
[356772231,1743151747898,-7028.37,0.00031995,10]
[356772232,1743151747935,-500.0,0.00031995,10]
[356772233,1743151747958,-500.0,0.00031995,10]
[356772234,1743151747981,-757.25,0.00031995,10]
[356772235,1743151748003,-500.0,0.00031995,10]
[356772236,1743151748024,-500.0,0.00031995,10]
[356772237,1743151748045,-500.0,0.00031995,10]
[356772238,1743151748065,-500.0,0.00031995,10]
[356772239,1743151748086,-4343.15,0.00031995,10]
[356772240,1743151748106,-510.6,0.00031995,10]
[356772241,1743151748127,-909.81,0.00031995,10]
[356772242,1743151748149,-231.96,0.00031995,7]
[356772243,1743151748171,-1232.04,0.00031995,10]
[356772244,1743151748194,-302.54914364,0.00031995,10]
[356772245,1743151748216,-535.12,0.00031995,10]
[356772246,1743151748238,-1999.45,0.00031995,10]
[356772247,1743151748261,-500.0,0.00031995,10]
[356772248,1743151748282,-924.56,0.00031995,10]
[356772249,1743151748303,-500.0,0.00031995,10]
[356772250,1743151748325,-947.46,0.00031995,10]
[356772251,1743151748347,-500.0,0.00031995,10]
[356772252,1743151748369,-500.0,0.00031995,10]
[356772253,1743151748396,-18626.36,0.00031995,10]
[356772254,1743151748419,-569.12642442,0.00031995,10]
[356772255,1743151748439,-619.59,0.00031995,10]
[356772256,1743151748461,-500.0,0.00031995,10]
[356772257,1743151748481,-2586.16,0.00031995,10]
[356772258,1743151748505,-534.87,0.00031995,10]
[356772259,1743151748525,-500.0,0.00031995,10]
[356772260,1743151748547,-595.16,0.00031995,10]
[356772261,1743151748569,-1078.22,0.00031995,10]
[356772262,1743151748590,-685.62,0.00031995,10]
[356772263,1743151748611,-500.0,0.00031995,10]
[356772264,1743151748637,-748.4,0.00031995,10]
[356772265,1743151748658,-4664.98,0.00031995,10]
[356772266,1743151748680,-500.0,0.00031995,10]
[356772267,1743151748700,-500.0,0.00031995,10]
[356772268,1743151748723,-795.55,0.00031995,10]
[356772269,1743151748746,-500.0,0.00031995,10]
[356772270,1743151748767,-4666.34,0.00031995,10]
[356772271,1743151748788,-959.37,0.00031995,10]
[356772272,1743151748809,-500.0,0.00031995,10]
[356772273,1743151748831,-4777.63,0.00031995,10]
[356772274,1743151748853,-500.0,0.00031995,10]
[356772275,1743151748874,-317.58011561,0.00031995,10]
[356772276,1743151748895,-500.0,0.00031995,10]
[356772277,1743151748916,-500.0,0.00031995,10]
[356772278,1743151748937,-2412.09,0.00031995,10]
[356772279,1743151748957,-815.63,0.00031995,10]
[356772280,1743151748979,-556.77,0.00031995,10]
[356772281,1743151749004,-13213.19639438,0.00031996,3]
[356772282,1743151749025,-835.12233967,0.00031996,3]
[356772283,1743151749050,-667.08,0.00031996,10]
[356772284,1743151749071,-500.0,0.00031996,10]
[356772285,1743151749093,-834.24,0.00031996,10]
[356772286,1743151749114,-500.0,0.00031996,10]
[356772287,1743151749139,-662.49,0.00031996,10]
[356772288,1743151749161,-500.0,0.00031996,10]
[356772289,1743151749183,-500.0,0.00031996,10]
[356772290,1743151749204,-500.0,0.00031996,10]
[356772291,1743151749226,-619.04,0.00031996,10]
[356772292,1743151749247,-500.0,0.00031996,10]
[356772293,1743151749269,-1433.43,0.00031996,10]
[356772294,1743151749290,-500.0,0.00031996,10]
[356772295,1743151749311,-500.0,0.00031996,10]
[356772296,1743151749333,-852.07,0.00031996,10]
[356772297,1743151749355,-500.0,0.00031996,10]
[356772298,1743151749380,-1150.02,0.00031996,10]
[356772299,1743151749401,-976.16,0.00031996,10]
[356772300,1743151749423,-1048.39,0.00031996,10]
[356772301,1743151749445,-500.0,0.00031996,10]
[356772302,1743151749468,-500.0,0.00031996,10]
[356772303,1743151749490,-921.6,0.00031996,10]
[356772304,1743151749512,-500.0,0.00031996,10]
[356772305,1743151749533,-1053.18,0.00031996,10]
[356772306,1743151749556,-500.0,0.00031996,10]
[356772307,1743151749578,-500.0,0.00031996,10]
[356772308,1743151749600,-500.0,0.00031996,10]
[356772309,1743151749622,-651.29,0.00031996,10]
[356772310,1743151749644,-684.44,0.00031996,10]
[356772311,1743151749665,-732.87,0.00031996,10]
[356772312,1743151749687,-1403.27,0.00031996,10]
[356772313,1743151749708,-202.93821054,0.00031996,10]
[356772314,1743151749729,-500.0,0.00031996,10]
[356772315,1743151749751,-2345.78,0.00031996,10]
[356772316,1743151749773,-661.7,0.00031996,10]
[356772317,1743151749794,-500.0,0.00031996,10]
[356772318,1743151749814,-500.0,0.00031996,10]
[356772319,1743151749836,-500.0,0.00031996,10]
[356772320,1743151749857,-500.0,0.00031996,10]
[356772321,1743151749877,-500.0,0.00031996,10]
[356772322,1743151749898,-533.22573824,0.00031996,10]
[356772323,1743151749918,-500.0,0.00031996,10]
[356772324,1743151749938,-899.35,0.00031996,10]
[356772325,1743151749959,-802.38,0.00031996,10]
[356772326,1743151749982,-1273.94,0.00031996,10]
[356772327,1743151750003,-1410.56,0.00031996,10]
[356772328,1743151750025,-1023.44,0.00031996,10]
[356772329,1743151750046,-4606.53,0.00031996,10]
[356772330,1743151750373,-741.43,0.00031996,10]
[356772331,1743151750402,-514.6,0.00031996,10]
[356772332,1743151750425,-500.0,0.00031996,10]
[356772333,1743151750446,-1345.82,0.00031996,10]
[356772334,1743151750470,-1031.11,0.00031996,10]
[356772335,1743151750492,-588.87,0.00031996,10]
[356772336,1743151750515,-546.89,0.00031996,10]
[356772337,1743151750536,-546.72,0.00031996,10]
[356772338,1743151750557,-500.0,0.00031996,10]
[356772339,1743151750577,-500.0,0.00031996,10]
[356772340,1743151750598,-1968.16,0.00031996,10]
[356772341,1743151750618,-1006.22,0.00031996,10]
[356772342,1743151750641,-1868.65,0.00031996,10]
[356772343,1743151750662,-500.0,0.00031996,10]
[356772344,1743151750683,-682.1,0.00031996,10]
[356772345,1743151750704,-330.06916704,0.00031996,10]
[356772346,1743151750725,-695.7,0.00031996,10]
[356772347,1743151750746,-500.0,0.00031996,10]
[356772348,1743151750767,-500.0,0.00031996,10]
[356772349,1743151750787,-686.34,0.00031996,10]
[356772350,1743151750808,-3083.92,0.00031996,10]
[356772351,1743151750827,-522.02227104,0.00031996,10]
[356772352,1743151750848,-580.62,0.00031996,10]
[356772353,1743151750871,-3537.42,0.00031996,10]
[356772354,1743151750891,-500.0,0.00031996,10]
[356772355,1743151750913,-500.0,0.00031996,10]
[356772356,1743151750933,-3190.57,0.00031996,10]
[356772357,1743151750954,-1345.11,0.00031996,10]
[356772358,1743151750975,-1104.47,0.00031996,10]
[356772359,1743151750996,-5409.27,0.00031996,10]
[356772360,1743151751018,-22523.46,0.00031996,10]
[356772361,1743151751038,-556.11,0.00031996,10]
[356772362,1743151751059,-500.0,0.00031996,10]
[356772363,1743151751079,-4455.79,0.00031996,10]
[356772364,1743151751100,-503.56,0.00031996,10]
[356772365,1743151751121,-9705.88,0.00031996,10]
[356772366,1743151751142,-500.0,0.00031996,10]
[356772367,1743151751162,-868.32,0.00031996,10]
[356772368,1743151751183,-1031.03,0.00031996,10]
[356772369,1743151751204,-1766.18,0.00031996,10]
[356772370,1743151751224,-177.65619061,0.00031996,10]
[356772371,1743151751246,-500.0,0.00031996,10]
[356772372,1743151751269,-1213.94,0.00031996,10]
[356772373,1743151751290,-500.0,0.00031996,10]
[356772374,1743151751312,-12019.87,0.00031996,10]
[356772375,1743151751332,-2068.59,0.00031996,10]
[356772376,1743151751355,-2450.45,0.00031996,10]